[Event "Early-Titled-Tuesday-Blitz-July-09-2024"]
[Site "Chess.com"]
[Date "2024.07.09"]
[Round "8"]
[White "Mops_2004"]
[Black "ninguno46"]
[Result "1-0"]
[WhiteElo "2724"]
[BlackElo "2570"]
[TimeControl "180+1"]
[EndTime "9:30:35 PDT"]
[Termination "Mops_2004 won on time"]

1. d4 {[%clk 0:03:00.9]} 1... d6 {[%clk 0:02:58.2]} 2. Nf3 {[%clk 0:02:59.4]}
2... Nf6 {[%clk 0:02:58.3]} 3. c4 {[%clk 0:02:59.2]} 3... g6 {[%clk 0:02:58.6]}
4. Nc3 {[%clk 0:02:59.4]} 4... Bg7 {[%clk 0:02:59.2]} 5. e4 {[%clk 0:02:59.5]}
5... O-O {[%clk 0:02:59.8]} 6. Be2 {[%clk 0:02:59.2]} 6... c5 {[%clk 0:03:00.3]}
7. O-O {[%clk 0:02:56.1]} 7... Nc6 {[%clk 0:03:00.3]} 8. d5 {[%clk 0:02:55.1]}
8... Na5 {[%clk 0:03:00.2]} 9. a3 {[%clk 0:02:46.2]} 9... b6 {[%clk 0:02:59.3]}
10. h3 {[%clk 0:02:44]} 10... e5 {[%clk 0:02:58.8]} 11. Bg5 {[%clk 0:02:33.6]}
11... h6 {[%clk 0:02:57.3]} 12. Bh4 {[%clk 0:02:27.5]} 12... g5 {[%clk
0:02:42.9]} 13. Bg3 {[%clk 0:02:26.9]} 13... Nh5 {[%clk 0:02:43.5]} 14. Nd2
{[%clk 0:02:15.8]} 14... Nf4 {[%clk 0:02:28.1]} 15. Bg4 {[%clk 0:02:15.7]} 15...
f5 {[%clk 0:01:51.9]} 16. exf5 {[%clk 0:02:15.2]} 16... Bxf5 {[%clk 0:01:52.8]}
17. Bxf5 {[%clk 0:02:14.4]} 17... Rxf5 {[%clk 0:01:53.2]} 18. b4 {[%clk
0:01:47.2]} 18... Nb7 {[%clk 0:01:52]} 19. Nde4 {[%clk 0:01:40.8]} 19... Qe8
{[%clk 0:01:45.4]} 20. bxc5 {[%clk 0:01:32.1]} 20... Nxc5 {[%clk 0:01:43.5]} 21.
Nxd6 {[%clk 0:01:31.7]} 21... Qf8 {[%clk 0:01:39.8]} 22. Nxf5 {[%clk 0:01:31.6]}
22... Qxf5 {[%clk 0:01:39.8]} 23. d6 {[%clk 0:01:30]} 23... Rd8 {[%clk
0:01:34.4]} 24. Ra2 {[%clk 0:01:11.2]} 24... e4 {[%clk 0:01:31.7]} 25. Nd5
{[%clk 0:01:09]} 25... Kh8 {[%clk 0:01:19.9]} 26. Rd2 {[%clk 0:00:47.2]} 26...
Nfd3 {[%clk 0:01:11.9]} 27. Qg4 {[%clk 0:00:37.4]} 27... Qf7 {[%clk 0:01:07]}
28. h4 {[%clk 0:00:35.5]} 28... gxh4 {[%clk 0:01:03.4]} 29. Qxh4 {[%clk
0:00:35.9]} 29... Rd7 {[%clk 0:01:00.1]} 30. Re2 {[%clk 0:00:35.1]} 30... Qf5
{[%clk 0:00:45.8]} 31. Ne7 {[%clk 0:00:30.2]} 31... Qe6 {[%clk 0:00:41.3]} 32.
f3 {[%clk 0:00:26.6]} 32... Bd4+ {[%clk 0:00:36.5]} 33. Kh2 {[%clk 0:00:26.7]}
33... Rxd6 {[%clk 0:00:25.7]} 34. fxe4 {[%clk 0:00:18.6]} 34... Rd7 {[%clk
0:00:25.1]} 35. Rf8+ {[%clk 0:00:14.6]} 35... Kh7 {[%clk 0:00:25.3]} 36. Nf5
{[%clk 0:00:12]} 36... Bg7 {[%clk 0:00:21.5]} 37. Nxg7 {[%clk 0:00:09.4]} 37...
Rxg7 {[%clk 0:00:21.5]} 38. e5 {[%clk 0:00:09.2]} 38... Rg4 {[%clk 0:00:18.5]}
39. Qf6 {[%clk 0:00:07.3]} 39... Qxf6 {[%clk 0:00:16.5]} 40. exf6 {[%clk
0:00:07.3]} 40... h5 {[%clk 0:00:11.2]} 41. Re7+ {[%clk 0:00:07.3]} 41... Kg6
{[%clk 0:00:12.1]} 42. Rg7+ {[%clk 0:00:07.1]} 42... Kf5 {[%clk 0:00:12.5]} 43.
Rxg4 {[%clk 0:00:07.3]} 43... hxg4 {[%clk 0:00:13.1]} 44. f7 {[%clk 0:00:07.2]}
44... Ne6 {[%clk 0:00:13.6]} 45. Ra8 {[%clk 0:00:06.8]} 45... Nb2 {[%clk
0:00:12.3]} 46. Rxa7 {[%clk 0:00:06.2]} 46... Nxc4 {[%clk 0:00:10.9]} 47. Ra6
{[%clk 0:00:06.5]} 47... Kf6 {[%clk 0:00:10.2]} 48. Bf2 {[%clk 0:00:06]} 48...
Kxf7 {[%clk 0:00:10]} 49. Bxb6 {[%clk 0:00:06.5]} 49... Ng5 {[%clk 0:00:08.2]}
50. Bf2 {[%clk 0:00:05.7]} 50... Ne4 {[%clk 0:00:08.1]} 51. Bh4 {[%clk
0:00:05.9]} 51... Ne3 {[%clk 0:00:02.8]} 52. a4 {[%clk 0:00:06.2]} 52... Nf1+
{[%clk 0:00:02.9]} 53. Kg1 {[%clk 0:00:06.5]} 53... Nfd2 {[%clk 0:00:01.4]} 54.
a5 {[%clk 0:00:06]} 54... g3 {[%clk 0:00:01.6]} 55. Ra7+ {[%clk 0:00:05.1]}
55... Ke6 {[%clk 0:00:01.3]} 56. a6 {[%clk 0:00:05.4]} 56... Nc3 {[%clk
0:00:01]} 57. Bxg3 {[%clk 0:00:04.3]} 57... Ne2+ {[%clk 0:00:01.1]} 58. Kf2
{[%clk 0:00:04.6]} 1-0

[Event "Early-Titled-Tuesday-Blitz-July-09-2024"]
[Site "Chess.com"]
[Date "2024.07.09"]
[Round "8"]
[White "madmax011"]
[Black "Mostii"]
[Result "0-1"]
[WhiteElo "2358"]
[BlackElo "2507"]
[TimeControl "180+1"]
[EndTime "9:30:40 PDT"]
[Termination "Mostii won by resignation"]

1. d4 {[%clk 0:03:00.9]} 1... e6 {[%clk 0:03:00.1]} 2. c4 {[%clk 0:02:57]} 2...
b6 {[%clk 0:03:00.2]} 3. Nf3 {[%clk 0:02:54.9]} 3... Bb7 {[%clk 0:03:00.5]} 4.
g3 {[%clk 0:02:55.2]} 4... Nf6 {[%clk 0:03:01.4]} 5. Bg2 {[%clk 0:02:55.4]} 5...
g6 {[%clk 0:03:02.3]} 6. O-O {[%clk 0:02:55.7]} 6... Bg7 {[%clk 0:03:03]} 7. Nc3
{[%clk 0:02:53.7]} 7... Ne4 {[%clk 0:03:03.6]} 8. Nxe4 {[%clk 0:02:50.6]} 8...
Bxe4 {[%clk 0:03:04.5]} 9. Bg5 {[%clk 0:02:47.2]} 9... Qc8 {[%clk 0:03:04.5]}
10. Rc1 {[%clk 0:02:30.8]} 10... O-O {[%clk 0:03:03.7]} 11. c5 {[%clk
0:02:29.4]} 11... Qb7 {[%clk 0:03:03.3]} 12. cxb6 {[%clk 0:02:20]} 12... axb6
{[%clk 0:03:02.8]} 13. a3 {[%clk 0:02:20]} 13... c5 {[%clk 0:02:59.6]} 14. dxc5
{[%clk 0:02:03.9]} 14... Bxb2 {[%clk 0:03:00.5]} 15. Rc4 {[%clk 0:02:03.8]}
15... Rxa3 {[%clk 0:02:52.1]} 16. Rb4 {[%clk 0:01:57.5]} 16... Bc3 {[%clk
0:02:18.7]} 17. Rxb6 {[%clk 0:01:55.9]} 17... Qa7 {[%clk 0:02:19.3]} 18. Bh6
{[%clk 0:01:41.2]} 18... Rc8 {[%clk 0:02:11.8]} 19. Qd6 {[%clk 0:01:41.2]} 19...
Nc6 {[%clk 0:01:32.1]} 20. Rd1 {[%clk 0:01:23.7]} 20... Ra1 {[%clk 0:00:51.5]}
21. Nh4 {[%clk 0:01:17.6]} 21... Be5 {[%clk 0:00:42.2]} 22. Qd2 {[%clk
0:01:14.1]} 22... Bxg2 {[%clk 0:00:38.3]} 23. Nxg2 {[%clk 0:01:14]} 23... Nd4
{[%clk 0:00:31.9]} 24. Rbb1 {[%clk 0:00:53.3]} 24... Rxb1 {[%clk 0:00:31.9]} 25.
Rxb1 {[%clk 0:00:54.2]} 25... Qxc5 {[%clk 0:00:32.4]} 26. Be3 {[%clk 0:00:51.9]}
26... Qc4 {[%clk 0:00:29.1]} 27. Bxd4 {[%clk 0:00:45.2]} 27... Qxd4 {[%clk
0:00:26.6]} 28. Qxd4 {[%clk 0:00:40.9]} 28... Bxd4 {[%clk 0:00:27.5]} 29. Rd1
{[%clk 0:00:41]} 29... Bf6 {[%clk 0:00:24]} 30. Nf4 {[%clk 0:00:37]} 30... d5
{[%clk 0:00:24.9]} 31. e3 {[%clk 0:00:37.1]} 31... Kg7 {[%clk 0:00:25.2]} 32.
Rb1 {[%clk 0:00:36.2]} 32... Be5 {[%clk 0:00:23.6]} 33. Nd3 {[%clk 0:00:35.3]}
33... Bf6 {[%clk 0:00:23]} 34. Rb7 {[%clk 0:00:34.8]} 34... g5 {[%clk
0:00:22.3]} 35. Kg2 {[%clk 0:00:31.4]} 35... Rc3 {[%clk 0:00:22.8]} 36. Ne1
{[%clk 0:00:24.7]} 36... g4 {[%clk 0:00:23.1]} 37. Rb1 {[%clk 0:00:22]} 37... h5
{[%clk 0:00:23.1]} 38. h3 {[%clk 0:00:20.7]} 38... Kg6 {[%clk 0:00:23.1]} 39.
hxg4 {[%clk 0:00:20.9]} 39... hxg4 {[%clk 0:00:24]} 40. Kf1 {[%clk 0:00:21.2]}
40... Ra3 {[%clk 0:00:21.3]} 41. Ke2 {[%clk 0:00:20.7]} 41... Ra2+ {[%clk
0:00:21.3]} 42. Kf1 {[%clk 0:00:20.4]} 42... d4 {[%clk 0:00:21.2]} 43. Ng2
{[%clk 0:00:19]} 43... e5 {[%clk 0:00:20.1]} 44. exd4 {[%clk 0:00:18.6]} 44...
exd4 {[%clk 0:00:21]} 45. Nf4+ {[%clk 0:00:18.9]} 45... Kf5 {[%clk 0:00:21.6]}
46. Rd1 {[%clk 0:00:19]} 46... Be5 {[%clk 0:00:20.3]} 47. Nd3 {[%clk 0:00:18.5]}
47... f6 {[%clk 0:00:20.8]} 48. Ke1 {[%clk 0:00:17.3]} 48... Ra8 {[%clk
0:00:20.3]} 49. Ke2 {[%clk 0:00:17]} 49... Ra2+ {[%clk 0:00:20.8]} 50. Ke1
{[%clk 0:00:16.6]} 50... Ke4 {[%clk 0:00:19.8]} 51. Nc5+ {[%clk 0:00:07.2]}
51... Kf3 {[%clk 0:00:18.1]} 52. Rd3+ {[%clk 0:00:07.1]} 52... Kg2 {[%clk
0:00:18.1]} 53. Ne4 {[%clk 0:00:07.5]} 53... Ra1+ {[%clk 0:00:17.6]} 54. Ke2
{[%clk 0:00:07.5]} 54... f5 {[%clk 0:00:16.5]} 55. Nd2 {[%clk 0:00:06.8]} 55...
Ra2 {[%clk 0:00:14.1]} 56. Rb3 {[%clk 0:00:06.8]} 56... f4 {[%clk 0:00:13.3]}
57. gxf4 {[%clk 0:00:06.7]} 57... Bxf4 {[%clk 0:00:14.2]} 58. Rd3 {[%clk
0:00:06.1]} 58... Rxd2+ {[%clk 0:00:14.9]} 59. Rxd2 {[%clk 0:00:06.6]} 59...
Bxd2 {[%clk 0:00:15.8]} 60. Kxd2 {[%clk 0:00:07.5]} 60... Kxf2 {[%clk
0:00:16.6]} 61. Kd3 {[%clk 0:00:07.2]} 61... g3 {[%clk 0:00:17.5]} 62. Kxd4
{[%clk 0:00:08.1]} 62... g2 {[%clk 0:00:18.4]} 0-1

[Event "Early-Titled-Tuesday-Blitz-July-09-2024"]
[Site "Chess.com"]
[Date "2024.07.09"]
[Round "8"]
[White "2Coaches1Profile"]
[Black "GothamChess"]
[Result "1-0"]
[WhiteElo "2601"]
[BlackElo "2738"]
[TimeControl "180+1"]
[EndTime "9:30:41 PDT"]
[Termination "2Coaches1Profile won by resignation"]

1. d4 {[%clk 0:02:58.8]} 1... g6 {[%clk 0:02:57.1]} 2. e4 {[%clk 0:02:58.6]}
2... Bg7 {[%clk 0:02:55.6]} 3. Nf3 {[%clk 0:02:59]} 3... d6 {[%clk 0:02:55.2]}
4. Nc3 {[%clk 0:02:59.3]} 4... a6 {[%clk 0:02:55.5]} 5. a4 {[%clk 0:02:59.1]}
5... Bg4 {[%clk 0:02:54.2]} 6. Bc4 {[%clk 0:02:56.5]} 6... e6 {[%clk 0:02:50.5]}
7. Be3 {[%clk 0:02:54.1]} 7... Nc6 {[%clk 0:02:50.6]} 8. d5 {[%clk 0:02:42.4]}
8... Bxf3 {[%clk 0:02:49.2]} 9. Qxf3 {[%clk 0:02:40.3]} 9... Ne5 {[%clk
0:02:49.2]} 10. Qe2 {[%clk 0:02:40.8]} 10... Nxc4 {[%clk 0:02:48.8]} 11. Qxc4
{[%clk 0:02:41.7]} 11... e5 {[%clk 0:02:43.8]} 12. a5 {[%clk 0:02:18.2]} 12...
Ne7 {[%clk 0:02:39.3]} 13. Ra3 {[%clk 0:02:04.3]} 13... f5 {[%clk 0:02:36]} 14.
Bg5 {[%clk 0:01:58.7]} 14... h6 {[%clk 0:02:27.6]} 15. Bxe7 {[%clk 0:01:58.4]}
15... Qxe7 {[%clk 0:02:28.5]} 16. Rb3 {[%clk 0:01:55.6]} 16... fxe4 {[%clk
0:01:26.6]} 17. Rxb7 {[%clk 0:01:48.4]} 17... O-O {[%clk 0:01:19.3]} 18. Rxc7
{[%clk 0:01:35.5]} 18... Qg5 {[%clk 0:01:12.3]} 19. O-O {[%clk 0:00:37.8]} 19...
e3 {[%clk 0:01:12.2]} 20. Ne4 {[%clk 0:00:33.4]} 20... exf2+ {[%clk 0:01:11.1]}
21. Nxf2 {[%clk 0:00:28.3]} 21... Qe3 {[%clk 0:01:09.1]} 22. Qd3 {[%clk
0:00:24.3]} 22... Qg5 {[%clk 0:00:57.6]} 23. Ne4 {[%clk 0:00:19.9]} 23... Rxf1+
{[%clk 0:00:53.7]} 24. Qxf1 {[%clk 0:00:20.8]} 24... Qe3+ {[%clk 0:00:53.7]} 25.
Qf2 {[%clk 0:00:21]} 25... Qc1+ {[%clk 0:00:45.1]} 26. Qf1 {[%clk 0:00:21.3]}
26... Qe3+ {[%clk 0:00:45.7]} 27. Qf2 {[%clk 0:00:21.6]} 27... Qd4 {[%clk
0:00:22.6]} 28. Qxd4 {[%clk 0:00:09]} 28... exd4 {[%clk 0:00:23.5]} 29. Nxd6
{[%clk 0:00:07.7]} 29... Be5 {[%clk 0:00:24.2]} 30. Rc6 {[%clk 0:00:06.3]} 30...
Rb8 {[%clk 0:00:24]} 31. Rc8+ {[%clk 0:00:04.5]} 31... Rxc8 {[%clk 0:00:22.9]}
32. Nxc8 {[%clk 0:00:05.4]} 32... Kf7 {[%clk 0:00:21.1]} 33. g3 {[%clk
0:00:04.5]} 33... Ke8 {[%clk 0:00:20.2]} 34. Kg2 {[%clk 0:00:04]} 34... d3
{[%clk 0:00:13.4]} 35. cxd3 {[%clk 0:00:04.1]} 35... Bxb2 {[%clk 0:00:14.1]} 36.
Kf3 {[%clk 0:00:03.8]} 36... Bc3 {[%clk 0:00:14.4]} 37. Nd6+ {[%clk 0:00:03.1]}
37... Kd7 {[%clk 0:00:12.7]} 38. Nc4 {[%clk 0:00:03.6]} 38... Bd4 {[%clk
0:00:11]} 39. Ke4 {[%clk 0:00:04.1]} 39... Bg1 {[%clk 0:00:11.1]} 40. d4 {[%clk
0:00:05]} 40... Bxh2 {[%clk 0:00:11.4]} 41. g4 {[%clk 0:00:05.4]} 41... Bg1
{[%clk 0:00:11.3]} 42. Ne5+ {[%clk 0:00:05.7]} 42... Kd6 {[%clk 0:00:09.4]} 43.
Nxg6 {[%clk 0:00:06.6]} 43... Bf2 {[%clk 0:00:10]} 44. Ne5 {[%clk 0:00:06.7]}
44... Be1 {[%clk 0:00:08.8]} 45. Nc4+ {[%clk 0:00:07.6]} 45... Kd7 {[%clk
0:00:08.9]} 46. Ke5 {[%clk 0:00:07.6]} 46... Bf2 {[%clk 0:00:09.5]} 47. Kf5
{[%clk 0:00:08.1]} 47... Bxd4 {[%clk 0:00:09.4]} 48. Kg6 {[%clk 0:00:08.7]}
48... Ke7 {[%clk 0:00:05.8]} 49. Kxh6 {[%clk 0:00:08.9]} 49... Kf7 {[%clk
0:00:06.5]} 50. g5 {[%clk 0:00:09.1]} 50... Ba1 {[%clk 0:00:05]} 51. Kh7 {[%clk
0:00:08.8]} 51... Kf8 {[%clk 0:00:04.9]} 52. d6 {[%clk 0:00:09]} 52... Ke8
{[%clk 0:00:04.9]} 53. g6 {[%clk 0:00:09.6]} 53... Kf8 {[%clk 0:00:03.4]} 54. d7
{[%clk 0:00:09.8]} 54... Ke7 {[%clk 0:00:03.7]} 55. g7 {[%clk 0:00:10.3]} 55...
Bxg7 {[%clk 0:00:03.5]} 56. Kxg7 {[%clk 0:00:10.5]} 56... Kxd7 {[%clk
0:00:04.3]} 57. Kf6 {[%clk 0:00:07.7]} 57... Kc6 {[%clk 0:00:05]} 58. Ke5 {[%clk
0:00:08]} 58... Kc5 {[%clk 0:00:05.7]} 59. Nd6 {[%clk 0:00:05.8]} 59... Kc6
{[%clk 0:00:04.1]} 60. Ke6 {[%clk 0:00:06.1]} 60... Kc5 {[%clk 0:00:02.7]} 61.
Kd7 {[%clk 0:00:06.7]} 61... Kb4 {[%clk 0:00:02.2]} 62. Nb7 {[%clk 0:00:07.3]}
62... Kb5 {[%clk 0:00:02.6]} 63. Kc7 {[%clk 0:00:08.2]} 63... Kb4 {[%clk
0:00:02.6]} 64. Kb6 {[%clk 0:00:09.1]} 1-0

[Event "Early-Titled-Tuesday-Blitz-July-09-2024"]
[Site "Chess.com"]
[Date "2024.07.09"]
[Round "8"]
[White "HansOnTwitch"]
[Black "ChessFighter_2011"]
[Result "1-0"]
[WhiteElo "3136"]
[BlackElo "2951"]
[TimeControl "180+1"]
[EndTime "9:30:42 PDT"]
[Termination "HansOnTwitch won by resignation"]

1. e4 {[%clk 0:02:50.9]} 1... c5 {[%clk 0:02:59.3]} 2. Nf3 {[%clk 0:02:50.9]}
2... g6 {[%clk 0:02:58.6]} 3. c3 {[%clk 0:02:46.2]} 3... d5 {[%clk 0:02:56.7]}
4. exd5 {[%clk 0:02:46.4]} 4... Qxd5 {[%clk 0:02:56.9]} 5. d4 {[%clk 0:02:47]}
5... Bg7 {[%clk 0:02:55.3]} 6. Be2 {[%clk 0:02:46.7]} 6... cxd4 {[%clk
0:02:40.5]} 7. cxd4 {[%clk 0:02:46]} 7... Nf6 {[%clk 0:02:40.9]} 8. Nc3 {[%clk
0:02:46.2]} 8... Qd8 {[%clk 0:02:40.9]} 9. O-O {[%clk 0:02:46.5]} 9... O-O
{[%clk 0:02:40.8]} 10. h3 {[%clk 0:02:42.8]} 10... Nc6 {[%clk 0:02:38.2]} 11. d5
{[%clk 0:02:41.3]} 11... Nb4 {[%clk 0:02:31.2]} 12. Bc4 {[%clk 0:02:41.4]} 12...
Ne8 {[%clk 0:01:59.8]} 13. a3 {[%clk 0:02:39.9]} 13... Nd6 {[%clk 0:01:57.7]}
14. Bb3 {[%clk 0:02:36.4]} 14... Na6 {[%clk 0:01:56.6]} 15. Re1 {[%clk
0:02:36.5]} 15... Bd7 {[%clk 0:01:43.3]} 16. Bg5 {[%clk 0:02:35.9]} 16... Re8
{[%clk 0:01:40.9]} 17. Bc2 {[%clk 0:02:34.9]} 17... Rc8 {[%clk 0:01:32]} 18. Bd3
{[%clk 0:02:35.2]} 18... Nc5 {[%clk 0:01:30.2]} 19. Bf1 {[%clk 0:02:31.4]} 19...
Qb6 {[%clk 0:01:25.2]} 20. Rb1 {[%clk 0:02:30.5]} 20... Bf5 {[%clk 0:01:24.2]}
21. Rc1 {[%clk 0:02:23.7]} 21... Qxb2 {[%clk 0:01:21.9]} 22. Na4 {[%clk
0:02:20.3]} 22... Qxa3 {[%clk 0:01:02.5]} 23. Nxc5 {[%clk 0:02:13.4]} 23... Rxc5
{[%clk 0:01:03.4]} 24. Rxc5 {[%clk 0:02:12]} 24... Qxc5 {[%clk 0:01:04.3]} 25.
Bxe7 {[%clk 0:02:12.1]} 25... Rxe7 {[%clk 0:00:50.5]} 26. Rxe7 {[%clk
0:02:11.6]} 26... Bf6 {[%clk 0:00:51]} 27. Re1 {[%clk 0:02:06.6]} 27... a5
{[%clk 0:00:51.3]} 28. Qa4 {[%clk 0:01:50.4]} 28... Bc3 {[%clk 0:00:42.1]} 29.
Rc1 {[%clk 0:01:44]} 29... b5 {[%clk 0:00:42.3]} 30. Qh4 {[%clk 0:01:40.3]}
30... b4 {[%clk 0:00:36.6]} 31. Ng5 {[%clk 0:01:34.5]} 31... h5 {[%clk
0:00:36.8]} 32. g4 {[%clk 0:01:34.5]} 32... hxg4 {[%clk 0:00:19.9]} 33. hxg4
{[%clk 0:01:35.4]} 33... Qd4 {[%clk 0:00:20.3]} 34. Qh7+ {[%clk 0:01:31.2]}
34... Kf8 {[%clk 0:00:19.6]} 35. Qh6+ {[%clk 0:01:30.4]} 35... Qg7 {[%clk
0:00:11.6]} 36. Qxg7+ {[%clk 0:01:25.1]} 36... Kxg7 {[%clk 0:00:12.5]} 37. gxf5
{[%clk 0:01:25.7]} 37... a4 {[%clk 0:00:12.6]} 38. Bd3 {[%clk 0:01:11.5]} 38...
a3 {[%clk 0:00:09.9]} 39. Bb1 {[%clk 0:01:11.9]} 39... Bd2 {[%clk 0:00:08.3]}
40. f6+ {[%clk 0:01:07.9]} 40... Kxf6 {[%clk 0:00:07.6]} 41. Rc6 {[%clk
0:01:08.4]} 41... Ke7 {[%clk 0:00:05.9]} 42. Nf3 {[%clk 0:01:02.3]} 42... Bc3
{[%clk 0:00:06.1]} 43. Ba2 {[%clk 0:01:02.8]} 43... f5 {[%clk 0:00:05.6]} 44.
Kf1 {[%clk 0:01:02.8]} 44... Kd7 {[%clk 0:00:05.4]} 45. Ke2 {[%clk 0:01:03.1]}
45... Ne4 {[%clk 0:00:04.2]} 46. Kd3 {[%clk 0:00:59.3]} 46... Nxf2+ {[%clk
0:00:04.2]} 47. Kc2 {[%clk 0:00:59.9]} 47... Ne4 {[%clk 0:00:05.1]} 48. Rxg6
{[%clk 0:00:59.9]} 48... Nc5 {[%clk 0:00:04.9]} 49. Bc4 {[%clk 0:00:57.8]} 49...
f4 {[%clk 0:00:05]} 50. d6 {[%clk 0:00:57.6]} 50... Kc6 {[%clk 0:00:04.4]} 51.
Ng5 {[%clk 0:00:49.3]} 51... Be5 {[%clk 0:00:03.8]} 52. Ne6 {[%clk 0:00:45]}
52... Bxd6 {[%clk 0:00:03.1]} 53. Nxc5 {[%clk 0:00:42.6]} 53... Kxc5 {[%clk
0:00:04]} 54. Bb3 {[%clk 0:00:41.8]} 54... Be5 {[%clk 0:00:04.6]} 55. Kd3 {[%clk
0:00:42.3]} 55... Bc3 {[%clk 0:00:04.6]} 56. Rg5+ {[%clk 0:00:41.9]} 56... Kd6
{[%clk 0:00:05.1]} 57. Rf5 {[%clk 0:00:42.8]} 57... Be5 {[%clk 0:00:05.2]} 58.
Ke4 {[%clk 0:00:42.9]} 58... Bc3 {[%clk 0:00:06.1]} 59. Rxf4 {[%clk 0:00:43.3]}
59... Kc5 {[%clk 0:00:07]} 60. Rf5+ {[%clk 0:00:43.7]} 60... Kd6 {[%clk
0:00:07.6]} 61. Rd5+ {[%clk 0:00:44]} 61... Kc6 {[%clk 0:00:08.2]} 62. Kf5
{[%clk 0:00:43.5]} 62... Bb2 {[%clk 0:00:07.8]} 63. Ke6 {[%clk 0:00:43.8]} 63...
Bc3 {[%clk 0:00:08.4]} 64. Rh5 {[%clk 0:00:40.3]} 64... Bb2 {[%clk 0:00:07.9]}
65. Rh4 {[%clk 0:00:38.6]} 65... Bc3 {[%clk 0:00:07.1]} 66. Rc4+ {[%clk
0:00:38.5]} 66... Kb5 {[%clk 0:00:07.7]} 67. Kd5 {[%clk 0:00:38]} 67... Be1
{[%clk 0:00:08.2]} 68. Rc5+ {[%clk 0:00:36.4]} 68... Kb6 {[%clk 0:00:08.8]} 69.
Bc4 {[%clk 0:00:36.9]} 69... Bc3 {[%clk 0:00:08.4]} 70. Rc6+ {[%clk 0:00:37.2]}
70... Kb7 {[%clk 0:00:08.4]} 71. Kd6 {[%clk 0:00:37.6]} 71... Be1 {[%clk
0:00:08.3]} 72. Kd7 {[%clk 0:00:37.7]} 72... Bd2 {[%clk 0:00:06.8]} 73. Bd5
{[%clk 0:00:38]} 73... Kb8 {[%clk 0:00:05.2]} 74. Ra6 {[%clk 0:00:36.8]} 1-0

[Event "Early-Titled-Tuesday-Blitz-July-09-2024"]
[Site "Chess.com"]
[Date "2024.07.09"]
[Round "8"]
[White "whitemirrorninja"]
[Black "biveklama"]
[Result "0-1"]
[WhiteElo "2539"]
[BlackElo "2676"]
[TimeControl "180+1"]
[EndTime "9:30:43 PDT"]
[Termination "biveklama won by resignation"]

1. e4 {[%clk 0:03:00.9]} 1... Nc6 {[%clk 0:02:58]} 2. Nc3 {[%clk 0:02:59.9]}
2... e5 {[%clk 0:02:57.6]} 3. Nf3 {[%clk 0:02:59.6]} 3... Nf6 {[%clk 0:02:57.6]}
4. Be2 {[%clk 0:03:00.1]} 4... Be7 {[%clk 0:02:56.9]} 5. d4 {[%clk 0:02:58.9]}
5... exd4 {[%clk 0:02:54.6]} 6. Nxd4 {[%clk 0:02:59.8]} 6... O-O {[%clk
0:02:54.5]} 7. Nxc6 {[%clk 0:02:55.6]} 7... dxc6 {[%clk 0:02:53.9]} 8. O-O
{[%clk 0:02:53.4]} 8... Be6 {[%clk 0:02:53.1]} 9. Qxd8 {[%clk 0:02:44.9]} 9...
Rfxd8 {[%clk 0:02:49.5]} 10. Be3 {[%clk 0:02:40.6]} 10... Nd7 {[%clk 0:02:46.7]}
11. f4 {[%clk 0:02:32.1]} 11... f6 {[%clk 0:02:43]} 12. a3 {[%clk 0:02:24.7]}
12... Nb6 {[%clk 0:02:41.8]} 13. Rad1 {[%clk 0:02:06.3]} 13... Nc4 {[%clk
0:02:38.5]} 14. Bxc4 {[%clk 0:02:04.8]} 14... Bxc4 {[%clk 0:02:38.4]} 15. Rxd8+
{[%clk 0:02:05.5]} 15... Rxd8 {[%clk 0:02:28.6]} 16. Rd1 {[%clk 0:02:05.9]}
16... Rxd1+ {[%clk 0:02:28.4]} 17. Nxd1 {[%clk 0:02:06.8]} 17... b6 {[%clk
0:02:24.6]} 18. Kf2 {[%clk 0:02:00]} 18... Kf7 {[%clk 0:02:24.7]} 19. g4 {[%clk
0:01:51.9]} 19... g6 {[%clk 0:02:20.6]} 20. f5 {[%clk 0:01:46.3]} 20... Bd6
{[%clk 0:02:15.4]} 21. h4 {[%clk 0:01:38.8]} 21... c5 {[%clk 0:02:08.4]} 22. b3
{[%clk 0:01:33.7]} 22... Ba6 {[%clk 0:02:07.2]} 23. a4 {[%clk 0:01:28]} 23... c4
{[%clk 0:02:03.1]} 24. Nc3 {[%clk 0:01:21.3]} 24... cxb3 {[%clk 0:01:59.4]} 25.
cxb3 {[%clk 0:01:22.2]} 25... c6 {[%clk 0:01:59.6]} 26. a5 {[%clk 0:01:08.3]}
26... Be5 {[%clk 0:01:55.1]} 27. Na4 {[%clk 0:00:58.5]} 27... Bd3 {[%clk
0:01:45]} 28. axb6 {[%clk 0:00:35.3]} 28... axb6 {[%clk 0:01:44]} 29. Nxb6
{[%clk 0:00:33.5]} 29... Bxe4 {[%clk 0:01:41.2]} 30. fxg6+ {[%clk 0:00:34.1]}
30... Kxg6 {[%clk 0:01:36.4]} 31. Nc4 {[%clk 0:00:34.8]} 31... Bc3 {[%clk
0:01:33.3]} 32. Bd2 {[%clk 0:00:29.6]} 32... Bd4+ {[%clk 0:01:18.7]} 33. Be3
{[%clk 0:00:28.3]} 33... Ba1 {[%clk 0:01:18.2]} 34. Nd6 {[%clk 0:00:23.2]} 34...
Bd5 {[%clk 0:01:13.9]} 35. h5+ {[%clk 0:00:18]} 35... Kg7 {[%clk 0:01:13.1]} 36.
b4 {[%clk 0:00:15.6]} 36... Be5 {[%clk 0:00:55.1]} 37. Nf5+ {[%clk 0:00:13.7]}
37... Kf7 {[%clk 0:00:53.8]} 38. Nd4 {[%clk 0:00:08.1]} 38... Bd6 {[%clk
0:00:47]} 39. b5 {[%clk 0:00:03.8]} 39... c5 {[%clk 0:00:46.9]} 40. Nf5 {[%clk
0:00:04.4]} 40... Bf8 {[%clk 0:00:47.5]} 41. Bh6 {[%clk 0:00:03.4]} 41... Bxh6
{[%clk 0:00:37.7]} 42. Nxh6+ {[%clk 0:00:04.3]} 42... Ke6 {[%clk 0:00:36.5]} 43.
Nf5 {[%clk 0:00:05]} 43... Kd7 {[%clk 0:00:21.6]} 44. Ke3 {[%clk 0:00:04.6]}
44... Kc7 {[%clk 0:00:20.5]} 45. Ne7 {[%clk 0:00:04.8]} 45... Be6 {[%clk
0:00:19.8]} 46. Nc6 {[%clk 0:00:03.1]} 46... Kb6 {[%clk 0:00:19.2]} 47. Nd8
{[%clk 0:00:03.1]} 47... Bd5 {[%clk 0:00:18.9]} 48. Kf4 {[%clk 0:00:03.4]} 48...
Kxb5 {[%clk 0:00:18.7]} 49. Kf5 {[%clk 0:00:03.7]} 49... c4 {[%clk 0:00:19.2]}
50. g5 {[%clk 0:00:03.9]} 50... fxg5 {[%clk 0:00:18.8]} 51. Kxg5 {[%clk
0:00:03.1]} 51... c3 {[%clk 0:00:18.9]} 52. Kh6 {[%clk 0:00:03.6]} 52... Be4
{[%clk 0:00:18.1]} 53. Nf7 {[%clk 0:00:03.3]} 53... Kc5 {[%clk 0:00:14.5]} 54.
Ng5 {[%clk 0:00:03.7]} 54... Bd3 {[%clk 0:00:14.4]} 55. Nxh7 {[%clk 0:00:03.7]}
55... Bxh7 {[%clk 0:00:14]} 56. Kxh7 {[%clk 0:00:03.8]} 56... c2 {[%clk
0:00:14.9]} 57. h6 {[%clk 0:00:04.6]} 57... c1=Q {[%clk 0:00:15.3]} 58. Kg7
{[%clk 0:00:04.8]} 58... Qg5+ {[%clk 0:00:15.4]} 59. Kh8 {[%clk 0:00:03.5]}
59... Qxh6+ {[%clk 0:00:15.2]} 60. Kg8 {[%clk 0:00:03.5]} 60... Qf6 {[%clk
0:00:14.7]} 61. Kh7 {[%clk 0:00:03.6]} 61... Qg5 {[%clk 0:00:15]} 62. Kh8 {[%clk
0:00:03.7]} 62... Kd6 {[%clk 0:00:15.9]} 63. Kh7 {[%clk 0:00:04.3]} 63... Ke7
{[%clk 0:00:16.8]} 64. Kh8 {[%clk 0:00:04.6]} 64... Kf7 {[%clk 0:00:17.7]} 0-1